bitfinex-derivatives/quotes_ETHF0:USTF0_20251103
["timestamp","ask_amount","ask_price","bid_price","bid_amount"]
[1762132349972,0.78300316,3860.0,3859.5,0.1364]
[1762132350276,0.78300316,3859.9,3859.5,0.13967186]
[1762132350474,0.78300316,3859.8,3859.5,0.13967186]
[1762132350672,0.55822509,3859.7,3859.5,0.13967186]
[1762132350870,0.55822509,3859.6,3859.5,0.13967186]
[1762132351075,0.55822509,3859.6,3859.5,0.00327186]
[1762132351474,10.96561145,3860.1,3859.5,0.00327186]
[1762132351475,0.55822509,3860.0,3859.5,0.00327186]
[1762132351674,0.22437855,3859.9,3859.5,0.00327186]
[1762132351872,0.78260364,3859.8,3859.5,0.00327186]
[1762132352071,0.55822509,3859.7,3859.5,0.14117186]
[1762132352377,0.55822509,3859.6,3859.5,0.14117186]
[1762132352880,0.55822509,3859.6,3859.5,0.36777186]
[1762132353070,0.55822509,3860.0,3859.5,0.36777186]
[1762132353275,0.22427484,3859.9,3859.5,0.14117186]
[1762132353475,0.55822509,3859.8,3859.5,0.14117186]
[1762132353676,0.55822509,3859.7,3859.5,0.14117186]
[1762132353973,0.55822509,3859.6,3859.5,0.14117186]
[1762132354371,10.96561145,3860.1,3859.5,0.14117186]
[1762132354576,0.78301361,3860.0,3859.5,0.14117186]
[1762132354786,0.55891186,3859.9,3859.5,0.14117186]
[1762132354970,0.55891186,3859.8,3859.5,0.14117186]
[1762132355170,0.55891186,3859.7,3859.5,0.14117186]
[1762132355376,10.96561145,3860.1,3859.5,0.14117186]
[1762132355577,0.7828,3860.0,3859.5,0.14117186]
[1762132355778,0.55876111,3859.9,3859.5,0.00327186]
[1762132355973,0.55876111,3859.8,3859.5,0.00327186]
[1762132356180,0.55876111,3859.7,3859.5,0.14117186]
[1762132356386,10.96561145,3860.1,3859.5,0.14117186]
[1762132356579,0.7826362,3860.0,3859.5,0.14117186]
[1762132356883,0.5586444,3859.9,3859.5,0.14117186]
[1762132357070,0.46638,3859.7,3859.5,0.14117186]
[1762132357479,3.2078,3859.9,3859.8,0.2266]
[1762132357684,0.46639,3859.6,3859.5,0.36777186]
[1762132358187,0.46637,3859.8,3859.7,0.2266]
[1762132358375,9.244,3860.0,3859.9,0.2266]
[1762132358578,9.244,3860.0,3859.5,0.14117186]
[1762132358579,0.46631,3860.2,3860.1,0.2266]
[1762132358877,0.46631,3860.3,3860.2,0.2266]
[1762132359677,9.244,3860.4,3860.2,0.2266]
[1762132359875,0.46952391,3861.1,3861.0,0.1379]
[1762132360090,1.02825202,3861.1,3861.0,0.3645]
[1762132361484,0.56204202,3861.1,3861.0,0.3645]
[1762132361788,0.56204202,3861.1,3861.0,0.1379]
[1762132362186,0.56204202,3861.1,3861.0,0.3645]
[1762132362587,0.56204202,3861.1,3861.0,0.1379]
[1762132362881,0.56204202,3861.1,3860.9,3.2078]
[1762132362882,0.46622,3861.0,3860.9,3.2078]
[1762132363089,0.46627,3860.6,3860.5,0.1379]
[1762132363789,0.46627,3860.6,3860.4,3.2078]
[1762132364089,0.46627,3860.6,3860.5,0.1379]
[1762132364783,1.02632342,3860.6,3860.5,0.1379]
[1762132365291,1.02632342,3860.6,3860.4,3.2078]
[1762132365587,0.56005342,3860.5,3860.4,3.2078]
[1762132367084,0.46631,3860.2,3860.1,1.4797]
[1762132367288,0.46639,3859.6,3859.5,0.14117186]
[1762132367589,0.46639,3859.6,3858.5,0.1398]
[1762132367590,14.76246977,3859.6,3858.5,0.1398]
[1762132367780,0.56005342,3859.5,3859.0,0.1398]
[1762132367976,0.56005342,3859.4,3859.0,0.1398]
[1762132368289,13.97836666,3859.6,3859.0,0.1398]
[1762132368290,0.56005342,3859.3,3859.0,0.1398]
[1762132368588,13.97836666,3859.6,3859.0,0.14168771]
[1762132368791,0.5596148,3859.5,3859.0,0.14168771]
[1762132368984,13.97836666,3859.6,3859.0,0.14168771]
[1762132368985,0.5596148,3859.4,3859.0,0.14168771]
[1762132369187,0.5596148,3859.3,3859.0,0.14168771]
[1762132369487,13.97836666,3859.6,3859.0,0.14168771]
[1762132369682,0.5594711,3859.5,3859.0,0.14168771]
[1762132369885,0.5594711,3859.4,3859.0,0.14168771]
[1762132370083,13.97836666,3859.6,3859.0,0.14168771]
[1762132370289,0.55947244,3859.5,3859.0,0.14168771]
[1762132370482,0.55947244,3859.4,3859.0,0.14168771]
[1762132370683,13.97836666,3859.6,3859.0,0.14168771]
[1762132370881,0.55935789,3859.5,3859.0,0.14168771]
[1762132371083,0.55935789,3859.4,3859.0,0.14168771]
[1762132371290,13.97836666,3859.6,3859.5,0.1398]
[1762132371483,14.53766169,3859.6,3859.5,0.1398]
[1762132371683,5.29766169,3859.6,3859.5,0.1398]
[1762132371881,14.53766169,3859.6,3859.5,0.1398]
[1762132375094,15.00105169,3859.6,3859.5,0.1398]
[1762132376195,11.79325169,3859.6,3859.5,0.1398]
[1762132377297,15.00105169,3859.6,3859.5,0.1398]
[1762132379594,11.79325169,3859.6,3859.5,0.1398]
[1762132380306,0.55929503,3859.6,3859.5,0.3576]
[1762132380602,9.7023,3860.3,3860.2,0.2178]
[1762132380900,9.236,3860.3,3860.2,0.2178]
[1762132381101,0.46628,3860.5,3860.4,0.2178]
[1762132381697,9.70126,3860.7,3860.6,0.2178]
[1762132381897,10.26157545,3860.7,3860.6,0.2178]
[1762132382100,10.26157545,3860.7,3860.5,0.1398]
[1762132382398,0.56031545,3860.6,3860.5,0.1398]
[1762132382593,0.56031545,3860.6,3860.5,0.3576]
[1762132383295,9.70126,3860.7,3860.6,0.2178]
[1762132383492,9.70125,3860.7,3860.6,0.2178]
[1762132383694,9.235,3860.7,3860.6,0.2178]
[1762132389794,0.46627,3860.6,3860.5,0.1398]
[1762132389997,3.67407,3860.6,3860.5,0.1398]
[1762132390197,0.46631,3860.2,3860.1,1.2007]
[1762132390502,11.03522133,3860.2,3860.0,0.1398]
[1762132393997,0.46636,3859.8,3859.7,1.391]
[1762132394195,10.25410094,3859.8,3859.7,1.391]
[1762132394599,9.228,3859.8,3859.7,1.6088]
[1762132394802,9.228,3859.8,3859.7,1.391]
[1762132395998,0.46632,3860.1,3860.0,0.1369]
[1762132396296,9.78695829,3860.1,3860.0,0.3696]
[1762132396492,9.227,3860.1,3860.0,0.3696]
[1762132396992,9.69332,3860.2,3860.0,0.3696]
[1762132398105,9.69332,3860.2,3860.1,0.2327]
[1762132398508,9.227,3860.2,3860.1,0.2327]
[1762132398904,0.4663,3860.3,3860.2,0.2327]
[1762132400312,0.46625,3860.7,3860.6,0.2327]
[1762132401213,9.225,3860.9,3860.8,0.2327]
[1762132402099,0.00331391,3861.1,3861.0,0.3696]
[1762132406608,0.00331391,3861.1,3861.0,0.1369]
[1762132407205,0.46626,3860.6,3860.5,0.1369]
[1762132407405,0.46632,3860.1,3860.0,3.3447]
[1762132407606,0.46632,3860.1,3859.6,3.2078]
[1762132407607,0.46636,3859.8,3859.6,3.2078]
[1762132408006,0.46636,3859.8,3859.0,3.34898771]
[1762132408313,0.46636,3859.8,3859.5,0.1393]
[1762132408314,1.02607521,3859.8,3859.5,0.1393]
[1762132409601,1.02607521,3859.8,3859.0,3.34898771]
[1762132410014,0.55971521,3859.8,3859.5,0.1393]
[1762132410210,1.33991133,3859.6,3859.5,0.1393]
[1762132410517,11.11962654,3859.6,3859.5,0.1393]
[1762132410915,10.55991133,3859.6,3859.5,0.1393]
[1762132411117,11.11967428,3859.6,3859.5,0.1393]
[1762132412613,1.89967428,3859.6,3859.5,0.3678]
[1762132412818,11.11967428,3859.6,3859.5,0.1393]
[1762132415221,9.68535,3859.7,3859.5,0.1393]
[1762132415421,0.46635,3859.7,3859.6,0.2285]
[1762132415724,0.46624,3860.6,3860.5,0.1393]
[1762132415914,10.46921985,3860.6,3860.5,0.1393]
[1762132416111,1.25121985,3860.6,3860.5,0.3678]
[1762132416315,0.46624,3860.6,3860.5,0.3678]
[1762132416817,0.46624,3860.6,3860.5,0.1393]
[1762132417315,9.68424,3860.6,3860.5,0.1393]
[1762132418421,0.46624,3860.6,3860.5,0.3678]
[1762132418713,0.4662,3860.9,3860.8,0.2285]
[1762132419418,9.22031391,3861.1,3860.5,0.3678]
[1762132419419,0.46624,3860.6,3860.5,0.3678]
[1762132419721,10.24294443,3860.6,3860.5,0.1393]
[1762132420113,10.24294443,3860.6,3860.0,0.1393]
[1762132420114,0.4663,3860.1,3860.0,0.1393]
[1762132420417,1.80621133,3860.1,3860.0,0.1393]
[1762132420719,2.36529846,3860.1,3860.0,0.1393]
[1762132422321,1.80621133,3860.1,3860.0,0.1393]
[1762132422517,1.80621133,3860.1,3860.0,0.3678]
[1762132423323,1.80621133,3860.1,3860.0,0.1393]
[1762132423515,2.36524117,3860.1,3860.0,0.1393]
[1762132426625,2.36529341,3860.1,3860.0,0.1393]
[1762132427522,1.80621133,3860.1,3860.0,0.1393]
[1762132428227,1.80621133,3860.1,3860.0,0.3678]
[1762132430529,0.4663,3860.1,3860.0,0.3678]
[1762132430730,9.217,3860.2,3860.1,0.2297]
[1762132431324,0.46628,3860.3,3860.2,0.2297]
[1762132432632,0.4663,3860.1,3860.0,0.1393]
[1762132433024,0.4663,3860.1,3860.0,0.369]
[1762132437844,1.80621133,3860.1,3860.0,0.369]
[1762132442238,1.33991133,3860.1,3860.0,0.369]
[1762132442436,0.87555605,3860.1,3860.0,0.369]
[1762132443038,9.212,3860.4,3860.3,0.2297]
[1762132443241,0.87555605,3860.7,3860.6,0.2297]
[1762132443540,1.43640658,3860.7,3860.6,0.2297]
[1762132444037,1.90262658,3860.7,3860.6,0.2297]
[1762132444341,2.59302093,3860.7,3860.5,0.1378]
[1762132444635,9.9934083,3860.6,3860.5,0.1378]
[1762132447638,0.46628,3860.2,3860.1,1.0692]
[1762132447935,11.79809194,3860.2,3860.0,0.1393]
[1762132448135,0.7874083,3860.1,3860.0,0.1393]
[1762132449538,0.7874083,3860.1,3860.0,0.1378]
[1762132452443,2.31918986,3860.1,3860.0,0.1378]
[1762132452645,2.31918986,3860.1,3858.5,1.52725952]
[1762132452646,0.46636,3859.6,3859.5,1e-05]
[1762132452848,13.10371777,3859.6,3859.5,1e-05]
[1762132453045,13.66460793,3859.6,3859.5,1e-05]
[1762132453839,15.03436595,3859.6,3859.5,1e-05]
[1762132455141,15.03436595,3859.6,3858.5,0.1378]
[1762132455142,14.56800595,3859.6,3858.5,0.1378]
[1762132455348,13.78055802,3859.6,3859.5,0.136]
[1762132455551,14.56736514,3859.6,3859.5,0.136]
[1762132455743,3.99460712,3859.6,3859.5,0.3535]
[1762132456046,0.56053944,3859.6,3859.5,0.3535]
[1762132460141,1.36975802,3860.4,3859.5,0.3535]
[1762132460142,3.2078,3860.6,3860.5,0.3535]
[1762132460549,3.21111391,3861.1,3861.0,0.3535]
[1762132461150,0.46623,3860.6,3860.5,0.136]
[1762132461340,0.4663,3860.1,3860.0,0.136]
[1762132461536,3.2078,3860.7,3860.5,0.136]
[1762132461537,0.46623,3860.7,3860.5,0.136]
[1762132461742,0.46622,3860.7,3860.6,0.2175]
[1762132461939,3.2078,3861.0,3860.5,0.136]
[1762132461940,3.2078,3861.0,3860.9,0.2175]
[1762132462137,3.90029673,3861.0,3860.9,0.2175]
[1762132462634,0.00331391,3861.1,3861.0,0.3535]
[1762132464337,12.60648135,3861.9,3861.7,0.2175]
[1762132464750,0.46609,3861.8,3861.7,0.2175]
[1762132465349,0.46907477,3861.8,3861.7,0.2175]
[1762132466148,0.46611,3861.6,3861.5,0.136]
[1762132468950,0.69180925,3861.6,3861.5,0.136]
[1762132469453,0.46617,3861.1,3861.0,0.136]
[1762132469753,0.46617,3861.1,3861.0,0.3713]
[1762132470752,9.195,3861.3,3861.0,0.3713]
[1762132470753,9.195,3861.3,3861.2,0.2353]
[1762132472356,9.195,3861.3,3861.1,3.2078]
[1762132472756,9.195,3861.3,3861.2,0.2353]
[1762132476961,9.66115,3861.3,3861.2,0.2353]
[1762132477262,0.46617,3861.1,3861.0,0.3713]
[1762132477456,0.46617,3861.1,3861.0,0.136]
[1762132477663,3.67397,3861.1,3861.0,0.136]
[1762132479159,0.46624,3860.6,3860.5,0.136]
[1762132479360,0.4663,3860.1,3860.0,3.3438]
[1762132479559,9.6563,3860.1,3860.0,0.136]
[1762132480261,0.46636,3859.6,3859.5,3.3434]
[1762132480562,1.99814156,3859.6,3859.5,0.1356]
[1762132487165,3.67409,3860.2,3860.1,0.2287]
[1762132487468,12.86409,3860.2,3860.1,0.2287]
[1762132487670,9.65629,3860.2,3860.1,0.2287]
[1762132488275,9.19,3860.2,3860.1,0.2287]
[1762132490473,1.53178156,3860.5,3860.1,0.2287]
[1762132490780,0.4663,3860.2,3860.1,0.2287]
[1762132491965,0.4663,3860.2,3860.0,0.1307]
[1762132492279,9.188,3860.1,3860.0,0.1307]
[1762132492482,0.46631,3860.0,3859.8,3.2078]
[1762132492670,1.53178156,3859.9,3859.8,3.2078]
[1762132493366,0.46631,3860.0,3859.9,0.2287]
[1762132493572,9.188,3860.1,3860.0,0.3594]
[1762132494569,12.86104,3860.6,3860.5,0.3594]
[1762132494766,12.3948,3860.6,3860.5,0.3594]
[1762132494966,9.187,3860.6,3860.5,0.3594]
[1762132496175,0.46623,3860.7,3860.6,0.2287]
[1762132496381,0.46623,3860.7,3860.5,0.1307]
[1762132497385,0.4662,3860.9,3860.8,0.2287]
[1762132499482,0.46623,3860.6,3860.5,0.1307]
[1762132499684,0.46623,3860.6,3860.5,0.3594]
[1762132500381,9.187,3861.0,3860.5,0.3594]
[1762132500580,0.4662,3860.9,3860.5,0.3594]
[1762132500787,0.46623,3860.7,3860.6,0.2287]
[1762132500989,3.2078,3861.6,3861.5,0.3594]
[1762132501180,3.2078,3862.4,3861.7,0.2287]
[1762132501381,0.46602,3862.5,3862.4,0.2287]
[1762132501789,0.46599,3862.7,3862.6,0.2287]
[1762132501993,1.0229379,3862.7,3862.6,0.2287]
[1762132502291,0.46593,3863.1,3863.0,0.1307]
[1762132502588,0.46899198,3863.1,3863.0,0.1307]
[1762132503890,0.00306198,3863.1,3863.0,0.1307]
[1762132504086,0.00306198,3863.1,3863.0,0.3594]
[1762132504288,0.00306198,3863.1,3863.0,0.1307]
[1762132504590,0.00306198,3863.1,3861.7,3.2078]
[1762132504591,0.46609,3861.8,3861.7,3.2078]
[1762132504980,0.46611,3861.6,3861.0,3.3385]
[1762132505191,0.46617,3861.1,3861.0,3.3385]
[1762132505487,0.46617,3861.1,3861.0,0.1307]
[1762132505682,0.46623,3860.6,3860.5,0.1307]
[1762132505883,0.46623,3860.6,3860.5,0.13322825]
[1762132506490,0.46623,3860.6,3860.5,0.36192825]
[1762132507592,0.46623,3860.7,3860.5,0.36192825]
[1762132508091,0.46617,3861.2,3861.0,0.1307]
[1762132508686,3.2078,3861.7,3861.0,0.1307]
[1762132508991,0.46612,3861.6,3861.0,0.1307]
[1762132509188,10.71178156,3861.9,3861.6,0.1307]
[1762132509393,9.18,3861.9,3861.8,0.2287]
[1762132509688,3.67383,3862.3,3862.2,0.3594]
[1762132509893,9.179,3862.6,3862.2,0.3594]
[1762132510087,0.466,3862.6,3862.5,0.2287]
[1762132510289,1.53178156,3862.8,3862.5,0.2287]
[1762132510888,0.46598,3862.7,3862.2,0.1307]
[1762132511092,3.2078,3862.4,3861.6,0.1307]
[1762132511293,0.4661,3861.7,3861.6,0.1307]
[1762132512297,0.46617,3861.2,3861.0,3.3385]
[1762132512598,5.20575156,3861.2,3861.0,0.1307]
[1762132513293,1.99795156,3861.2,3861.0,0.1307]
[1762132513991,5.20575156,3861.2,3861.0,0.1307]
[1762132514298,0.46624,3860.6,3860.5,0.13322825]
[1762132514599,1.80566831,3860.6,3860.5,0.13322825]
[1762132516894,0.46624,3860.6,3860.5,0.13322825]
[1762132517095,0.46623,3860.7,3860.6,0.2148]
[1762132518397,4.54722831,3861.2,3860.8,0.2148]
[1762132518605,1.80559831,3861.2,3861.0,0.1304]
[1762132520497,4.54722831,3861.1,3861.0,0.1304]
[1762132520898,0.46624,3860.6,3860.5,0.13322825]
[1762132521097,1.80566831,3860.6,3860.5,0.13322825]
[1762132523203,1.80566831,3860.6,3860.5,0.34802825]
[1762132523699,1.80566831,3860.6,3860.5,0.13322825]
[1762132523895,5.01346831,3860.6,3860.5,0.13322825]
[1762132524212,5.56997983,3860.6,3860.5,0.00252825]
[1762132524402,5.56997983,3860.6,3860.5,0.13292825]
[1762132524708,5.01346831,3860.6,3860.5,0.13292825]
[1762132525005,5.57004293,3860.6,3860.5,0.13292825]
[1762132525501,5.57004293,3860.6,3860.5,0.00252825]
[1762132526407,5.57004293,3860.6,3860.5,0.13722825]
[1762132527904,5.57004293,3860.6,3860.5,0.00252825]
[1762132530208,5.57004293,3860.6,3860.5,0.13722825]
[1762132530505,5.01346831,3860.6,3860.5,0.13722825]
[1762132531205,5.01346831,3860.6,3860.5,0.00252825]
[1762132531605,4.23010086,3860.6,3860.5,0.00252825]
[1762132531802,0.46632,3859.9,3859.8,3.3385]
[1762132532008,1.80574831,3859.9,3859.8,3.3385]
[1762132532307,1.33942831,3859.9,3859.2,0.1307]
[1762132532612,5.88665662,3859.3,3858.0,0.1347]
[1762132532907,4.54722831,3858.6,3858.0,0.1347]
[1762132533208,4.54722831,3858.1,3858.0,0.1347]
[1762132533910,4.54722831,3858.1,3858.0,0.137871]
[1762132538503,3.2078,3858.1,3858.0,0.360571]
[1762132538708,3.2078,3858.6,3858.5,0.1347]
[1762132538909,1.33942831,3859.2,3858.5,0.3574]
[1762132539113,0.0023579,3859.3,3859.0,0.3574]
[1762132539114,3.2078,3859.1,3859.0,0.3574]
[1762132539411,3.2078,3859.1,3859.0,0.1347]
[1762132540107,1.34178621,3859.3,3859.0,0.3574]
[1762132540313,0.46641,3859.2,3859.0,0.3574]
[1762132541017,0.46641,3859.2,3859.0,0.1347]
[1762132541711,1.34178621,3859.3,3859.0,0.1347]
[1762132541909,1.80817621,3859.3,3859.2,0.2227]
[1762132542509,0.0023579,3859.3,3859.2,0.2227]
[1762132542711,3.2078,3860.0,3859.9,0.2227]
[1762132543910,3.21060949,3860.0,3859.9,0.2227]
[1762132544106,0.46623,3860.7,3860.4,0.2227]
[1762132544312,0.46622,3860.8,3860.6,0.2227]
[1762132545008,0.46628,3860.3,3860.0,0.1347]
[1762132545209,0.4663,3860.1,3859.8,3.2078]
[1762132545618,1.34211038,3860.3,3859.8,3.2078]
[1762132545921,0.46633,3859.9,3859.8,0.2222]
[1762132546121,0.46635,3859.7,3859.3,3.2078]
[1762132546624,0.46631,3860.0,3859.9,0.2222]
[1762132546918,0.46634,3859.8,3859.7,0.2222]
[1762132547317,0.46629,3860.2,3860.1,0.2222]
[1762132547613,0.46633,3859.8,3859.7,3.43]
[1762132547815,0.46633,3859.8,3859.7,0.2222]
[1762132548211,0.46638,3859.4,3859.3,3.43]
[1762132548609,0.46638,3859.4,3859.3,3.2078]
[1762132549219,0.68358,3859.4,3859.3,3.2078]
[1762132549515,0.46638,3859.4,3859.3,0.2222]
[1762132549708,0.46641,3859.2,3858.9,0.2222]
[1762132549911,0.46641,3859.2,3859.1,0.2222]
[1762132550216,0.46637,3859.5,3859.1,0.2222]
[1762132550518,3.2078,3860.1,3859.2,0.1383]
[1762132550721,3.2078,3860.1,3859.2,3.3461]
[1762132551017,0.46633,3859.9,3859.8,0.2222]
[1762132551410,3.6741,3860.1,3859.8,0.2222]
[1762132551606,1.33942831,3860.2,3859.8,0.3605]
[1762132551908,0.46632,3859.9,3859.8,0.3605]
[1762132552115,0.46632,3859.9,3859.8,0.2222]
[1762132553512,1.33942831,3860.2,3859.6,3.67415]
[1762132553719,1.80571831,3860.2,3859.6,3.2078]
[1762132553913,0.4663,3860.1,3859.6,3.2078]
[1762132554426,0.46631,3860.0,3859.6,3.2078]
[1762132555413,1.80571831,3860.2,3859.7,0.46634]
[1762132555718,1.33942831,3860.2,3859.7,0.46634]
[1762132555917,1.33942831,3860.2,3859.6,3.2078]
[1762132556415,1.33942831,3860.2,3859.7,0.46634]
[1762132556615,0.46631,3860.0,3859.6,3.2078]
[1762132556809,1.33942831,3860.2,3859.6,3.2078]
[1762132557010,0.46635,3859.7,3859.5,0.1383]
[1762132557218,0.2172,3859.4,3859.3,0.3717]
[1762132557418,0.46639,3859.4,3859.2,3.2078]
[1762132557720,0.2172,3858.9,3858.8,3.2078]
[1762132557930,1.55662831,3858.9,3858.8,3.2078]
[1762132558714,1.55662831,3858.9,3858.4,1.6123]
[1762132558715,0.348,3858.5,3858.4,1.6123]
[1762132558914,4.02231,3858.5,3858.4,1.6123]
[1762132560613,4.02231,3858.5,3858.0,0.003171]
[1762132560614,0.46656,3858.1,3858.0,0.003171]
[1762132560815,0.46656,3858.1,3857.8,2.17873068]
[1762132560816,0.46658,3857.9,3857.8,2.17873068]
[1762132561017,3.2078,3858.1,3857.8,2.17873068]
[1762132561211,3.67437,3858.1,3858.0,0.1383]
[1762132561412,0.46658,3857.9,3857.8,2.17873068]
[1762132561822,0.46658,3857.9,3857.4,0.1383]
[1762132561823,0.46668,3857.1,3856.7,3.2078]
[1762132562012,0.46671,3856.9,3856.5,0.1383]
[1762132562209,0.46672,3856.8,3856.5,0.14146361]
[1762132562412,0.46674,3856.7,3856.5,0.14146361]
[1762132562916,3.67452,3856.9,3856.5,0.14146361]
[1762132563114,0.46673,3856.7,3856.5,0.14146361]
[1762132563819,1.33942831,3856.6,3856.5,0.00316361]
[1762132564430,0.46678,3856.3,3856.2,1.5055]
[1762132564620,0.46681,3856.0,3855.9,1.33]
[1762132564926,1.33942831,3856.0,3855.9,1.33]
[1762132565128,1.80623831,3856.0,3855.9,1.33]
[1762132565321,1.33942831,3856.0,3855.9,1.33]
[1762132565620,1.80623831,3856.0,3855.9,1.33192765]
[1762132566514,1.33942831,3856.0,3855.9,0.00192765]
[1762132568620,3.67458,3856.3,3856.2,0.1383]
[1762132568928,3.67458,3856.3,3855.9,0.00192765]
[1762132569127,1.33942831,3856.0,3855.9,0.00192765]
[1762132569921,0.46683,3855.9,3855.7,1.35352935]
[1762132570125,0.46686,3855.6,3855.5,0.2885]
[1762132571127,1.33942831,3856.0,3855.6,0.1383]
[1762132571330,0.46679,3856.3,3856.2,0.1383]
[1762132572027,1.33942831,3856.4,3856.2,0.1383]
[1762132572230,3.2078,3856.6,3856.2,0.1383]
[1762132572424,1.33942831,3856.4,3856.2,0.1383]
[1762132573217,3.2078,3856.6,3856.2,0.1383]
[1762132573518,3.2078,3857.0,3856.8,0.1383]
[1762132573924,3.6745,3857.0,3856.8,0.1383]
[1762132574533,3.2078,3857.0,3856.8,0.1383]
[1762132574929,0.2581,3856.9,3856.4,3.2078]
[1762132575138,4.74135941,3857.0,3856.2,0.1383]
[1762132575331,0.46674,3856.7,3856.2,0.1383]
[1762132575828,4.74135941,3857.0,3856.2,0.1383]
[1762132576026,1.53355941,3857.0,3856.3,3.2078]
[1762132576228,1.53355941,3857.0,3856.3,3.67457]
[1762132576437,0.46671,3856.9,3856.8,0.1885]
[1762132577327,0.00265896,3857.1,3856.8,0.1885]
[1762132577730,0.46669,3857.0,3856.8,0.1885]
[1762132578034,0.4667,3857.0,3856.8,0.1885]
[1762132579535,0.00265896,3857.1,3856.8,0.1885]
[1762132579736,0.4667,3857.0,3856.8,0.1885]
[1762132579935,0.2581,3856.9,3856.8,0.1885]
[1762132580533,0.4667,3857.0,3856.8,0.1885]
[1762132581138,0.46934896,3857.1,3856.8,0.1885]
[1762132581336,0.4667,3857.0,3856.8,0.1885]
[1762132582140,0.00265896,3857.1,3856.8,0.1885]
[1762132582342,0.4667,3857.0,3856.8,0.1885]
[1762132582734,0.2581,3856.6,3856.5,0.1885]
[1762132582938,0.00265896,3857.1,3856.5,0.1885]
[1762132583437,0.00265896,3857.1,3857.0,0.1885]
[1762132584531,0.00265896,3857.1,3857.0,0.5095]
[1762132584935,0.00265896,3857.1,3857.0,0.1885]
[1762132585140,0.23125896,3857.1,3857.0,0.1885]
[1762132585840,0.00265896,3857.1,3857.0,0.4997]
[1762132586841,3.2078,3858.2,3858.0,0.1912]
[1762132587042,3.2078,3858.2,3858.1,0.3112]
[1762132587246,3.2078,3858.7,3858.5,0.1912]
[1762132587551,0.55674366,3858.6,3858.5,0.5024]
[1762132587740,3.67424,3859.1,3859.0,0.1912]
[1762132587935,3.90284,3859.1,3859.0,0.1912]
[1762132588141,3.99678452,3859.1,3859.0,0.1912]
[1762132588344,0.00310768,3859.1,3859.0,0.5024]
[1762132589043,0.46954768,3859.1,3859.0,0.5024]
[1762132589244,0.00310768,3859.1,3859.0,0.5024]
[1762132589946,7.737,3859.8,3859.7,0.3112]
[1762132590149,0.46637,3859.7,3859.5,0.1912]
[1762132591044,0.46836621,3859.7,3859.5,0.1912]
[1762132592249,0.00199621,3859.7,3859.5,0.1912]
[1762132592748,0.46837621,3859.7,3859.5,0.1912]
[1762132592941,0.00199621,3859.7,3859.0,0.1912]
[1762132593244,0.46638,3859.6,3859.0,0.1912]
[1762132593447,0.46641,3859.4,3859.3,0.3112]
[1762132594343,0.46641,3859.4,3859.0,3.399]
[1762132594544,0.46644,3859.1,3859.0,3.7102]
[1762132594741,0.00199621,3859.7,3859.0,3.7102]
[1762132594942,0.46642,3859.3,3859.0,3.399]
[1762132595141,0.4664,3859.5,3859.0,3.399]
[1762132595344,0.46642,3859.3,3859.0,3.399]
[1762132595848,0.46643,3859.2,3859.0,3.399]
[1762132596548,0.4664,3859.5,3859.1,0.3112]
[1762132596841,0.00199621,3859.7,3859.5,0.1912]
[1762132596842,0.46836621,3859.7,3859.5,0.1912]
[1762132597236,0.46756621,3859.7,3859.5,0.1912]
[1762132598550,0.2286,3859.6,3859.5,0.1912]
[1762132599348,0.46643,3859.2,3859.0,3.399]
[1762132599856,0.6951,3858.6,3858.5,0.00219815]
[1762132600641,0.46658,3858.0,3857.8,3.2078]
[1762132600852,0.46655,3858.2,3857.8,3.2078]
[1762132601050,0.46655,3858.2,3858.0,0.1912]
[1762132601351,0.46654,3858.3,3858.0,0.1912]
[1762132601548,3.2078,3858.7,3858.0,0.1912]
[1762132601549,0.46655,3858.2,3858.0,0.1912]
[1762132601746,0.46655,3858.2,3858.0,0.19375714]
[1762132602349,0.2264,3858.1,3858.0,0.19375714]
[1762132602749,0.46655,3858.2,3858.0,0.19375714]
[1762132602955,0.2264,3858.1,3858.0,0.19375714]
[1762132603153,9.169,3858.6,3858.0,0.19375714]
[1762132603455,3.2078,3858.7,3858.6,0.3112]
[1762132603646,3.67429,3858.7,3858.5,0.1912]
[1762132603953,0.2264,3858.6,3858.5,0.1912]
[1762132604349,3.67429,3858.7,3858.5,0.1912]
[1762132604753,0.2264,3858.6,3858.5,0.1912]
[1762132605258,0.192,3858.1,3858.0,0.19375714]
[1762132605456,3.86636,3858.1,3858.0,0.19375714]
[1762132605754,3.86636,3858.1,3858.0,0.00255714]
[1762132607360,0.65856,3858.1,3858.0,0.18875714]
[1762132607959,3.2078,3858.5,3858.1,0.3063]
[1762132608253,3.2078,3858.5,3858.4,0.3063]
[1762132610359,0.46656,3858.2,3858.0,0.18875714]
[1762132610664,3.2078,3858.5,3858.4,0.3063]
[1762132611761,3.2078,3858.5,3858.0,0.18875714]
[1762132612756,0.46654,3858.3,3858.2,0.3063]
[1762132613751,0.46653,3858.4,3858.2,0.3063]
[1762132614862,0.4665,3858.7,3858.5,0.1862]
[1762132615061,0.4665,3858.7,3858.6,0.3063]
[1762132615565,0.46647,3858.9,3858.6,0.3063]
[1762132615869,0.46647,3858.9,3858.5,0.1862]
[1762132615870,3.2078,3859.3,3859.0,0.4925]
[1762132616059,14.86163985,3861.0,3859.0,0.4925]
[1762132616060,1.84123807,3860.8,3859.2,4.74135941]
[1762132616264,0.1819,3861.0,3860.6,3.2078]
[1762132616659,0.1819,3861.0,3860.7,0.46625]
[1762132616857,0.1819,3861.0,3860.6,3.2078]
[1762132617060,0.18521845,3861.0,3860.8,0.46622]
[1762132617369,0.18521845,3861.0,3860.8,0.00193404]
[1762132619064,0.65142845,3861.0,3860.8,0.00193404]
[1762132619272,0.3062,3860.9,3860.8,0.00193404]
[1762132623065,0.77249,3860.3,3860.2,3.2078]
[1762132623259,0.1819,3860.4,3860.2,3.2078]
[1762132623864,0.46629,3860.3,3860.2,3.2078]
[1762132624074,0.77249,3860.3,3860.2,3.20999632]